bitfinex/quotes_SOLUSD_20251223
["timestamp","ask_amount","ask_price","bid_price","bid_amount"]
[1766471933192,26.92655176,124.44,124.41,0.7]
[1766471934197,23.04606292,124.44,124.41,0.7]
[1766471936578,22.71606292,124.44,124.41,0.7]
[1766471936888,14.68,124.44,124.42,0.7]
[1766471937089,14.68,124.44,124.43,0.7]
[1766471937480,10.76767296,124.45,124.42,4.58048884]
[1766471938389,10.43767296,124.45,124.43,0.7]
[1766471941407,10.43767296,124.45,124.43,3.88048884]
[1766471941700,10.43767296,124.45,124.43,0.7]
[1766471941701,9.71767296,124.45,124.43,0.7]
[1766471943003,10.41767296,124.45,124.42,4.58048884]
[1766471943188,18.45305277,124.45,124.42,0.7]
[1766471943906,10.41767296,124.45,124.42,0.7]
[1766471945012,18.45307095,124.45,124.42,0.7]
[1766471945308,22.33355979,124.45,124.42,0.7]
[1766471946097,0.67,124.44,124.41,0.71]
[1766471947613,0.67,124.43,124.4,0.71]
[1766471948311,3.88048884,124.44,124.41,0.71]
[1766471948511,4.55048884,124.44,124.41,0.71]
[1766471948709,0.67,124.44,124.41,0.71]
[1766471949197,8.70601243,124.44,124.41,0.71]
[1766471949607,0.67,124.44,124.41,0.71]
[1766471949808,25.06767296,124.45,124.42,0.71]
[1766471952586,28.9481618,124.45,124.42,0.71]
[1766471953414,24.39767296,124.45,124.43,0.71]
[1766471953791,28.9481618,124.45,124.43,0.71]
[1766471954012,10.38767296,124.45,124.43,0.71]
[1766471954592,10.38767296,124.45,124.41,0.71]
[1766471954807,10.38767296,124.45,124.42,0.71]
[1766471955319,9.71767296,124.45,124.42,0.71]
[1766471956729,0.67,124.49,124.45,0.71]
[1766471956896,8.70221401,124.5,124.47,0.71]
[1766471957315,19.13988697,124.5,124.47,0.71]
[1766471958024,8.70221401,124.5,124.47,0.71]
[1766471958525,10.43767296,124.49,124.47,0.71]
[1766471960144,4.55048884,124.48,124.45,0.71]
[1766471960825,3.88048884,124.48,124.45,0.71]
[1766471961006,4.55048884,124.48,124.45,0.71]
[1766471964325,18.47086119,124.49,124.46,0.71]
[1766471964326,10.43767296,124.49,124.46,0.71]
[1766471964525,0.67,124.48,124.44,11.91640417]
[1766471964827,0.67,124.48,124.45,0.71]
[1766471965431,22.35095315,124.49,124.45,0.71]
[1766471965731,23.02095315,124.49,124.45,0.71]
[1766471966036,4.55048884,124.48,124.45,0.71]
[1766471968233,0.67,124.48,124.45,0.71]
[1766471968428,0.67,124.48,124.45,4.59048884]
[1766471968619,14.9881618,124.49,124.46,0.71]
[1766471969525,14.3181618,124.49,124.46,0.71]
[1766471969725,14.9881618,124.49,124.46,0.71]
[1766471970648,0.67,124.48,124.45,0.71]
[1766471973939,10.43767296,124.49,124.46,0.66]
[1766471974129,15.0281618,124.49,124.46,0.66]
[1766471975645,11.14767296,124.49,124.46,0.66]
[1766471975819,15.0281618,124.49,124.46,0.66]
[1766471976013,13.62940887,124.49,124.46,0.66]
[1766471976330,12.91940887,124.49,124.46,0.66]
[1766471976639,0.72,124.48,124.46,0.66]
[1766471981853,11.15767296,124.47,124.42,15.38]
[1766471982056,8.03354483,124.48,124.41,0.7]
[1766471982057,3.20173591,124.44,124.41,0.7]
[1766471982944,0.72,124.44,124.41,0.7]
[1766471984047,3.20173591,124.44,124.41,0.7]
[1766471987951,0.72,124.44,124.41,0.7]
[1766471988114,13.63940887,124.45,124.41,0.7]
[1766471988449,10.43767296,124.45,124.43,0.7]
[1766471989951,10.43767296,124.45,124.42,0.7]
[1766471989952,11.15767296,124.45,124.42,0.7]
[1766471991248,11.15767296,124.45,124.42,3.18173591]
[1766471991851,10.43767296,124.45,124.42,2.48173591]
[1766471992147,10.43767296,124.45,124.43,2.48173591]
[1766471992350,10.43767296,124.46,124.45,0.7]
[1766471992553,9.71767296,124.46,124.45,3.18173591]
[1766471992754,0.72,124.48,124.45,3.18173591]
[1766471993058,0.72,124.48,124.45,0.7]
[1766471993262,0.72,124.48,124.45,3.18173591]
[1766471994531,10.43767296,124.46,124.45,3.18173591]
[1766471995654,28.10342057,124.54,124.46,0.7]
[1766471995830,28.10342057,124.54,124.47,2.48173591]
[1766471995831,2.48173591,124.51,124.47,2.48173591]
[1766471996031,13.63940887,124.5,124.47,0.7]
[1766471996233,11.15767296,124.5,124.47,0.7]
[1766471997051,11.15767296,124.5,124.46,3.18173591]
[1766471997052,0.72,124.49,124.46,3.18173591]
[1766471997828,11.15767296,124.5,124.46,3.18173591]
[1766471998032,11.15767296,124.5,124.47,0.7]
[1766471999355,0.72,124.49,124.46,3.18173591]
[1766472000049,11.15767296,124.5,124.46,2.48173591]
[1766472000256,0.72,124.49,124.46,2.48173591]
[1766472000435,0.72,124.49,124.46,3.18173591]
[1766472001836,18.47053617,124.49,124.46,0.7]
[1766472002161,10.43767296,124.49,124.46,2.48173591]
[1766472002562,11.15767296,124.49,124.46,3.18173591]
[1766472003450,10.43767296,124.49,124.47,3.18173591]
[1766472003753,10.43767296,124.49,124.47,0.7]
[1766472004135,10.43767296,124.49,124.47,3.18173591]
[1766472004831,10.43767296,124.49,124.47,0.7]
[1766472005347,10.43767296,124.49,124.47,3.18173591]
[1766472005856,23.42105193,124.52,124.48,2.48173591]
[1766472006060,10.43767296,124.5,124.48,3.17173591]
[1766472006549,10.43767296,124.5,124.48,0.69]
[1766472008739,10.43767296,124.5,124.49,0.69]
[1766472008939,10.43767296,124.5,124.48,0.69]
[1766472010666,10.43767296,124.5,124.46,0.69]
[1766472010855,0.71,124.48,124.45,3.17173591]
[1766472011064,0.71,124.48,124.45,0.69]
[1766472011761,21.66220737,124.49,124.45,0.69]
[1766472012362,21.66220737,124.49,124.45,3.17173591]
[1766472013472,21.66220737,124.49,124.46,0.69]
[1766472013644,20.95220737,124.49,124.45,2.48173591]
[1766472013845,0.71,124.48,124.45,0.69]
[1766472014555,0.71,124.48,124.45,3.17173591]
[1766472018250,0.71,124.46,124.43,2.48173591]
[1766472018487,2.48173591,124.46,124.42,3.17173591]
[1766472018675,0.71,124.45,124.42,3.17173591]
[1766472019170,0.71,124.46,124.43,0.69]
[1766472019570,0.71,124.46,124.41,8.03787263]
[1766472019571,10.51651876,124.46,124.41,8.72787263]
[1766472019753,10.51651876,124.46,124.42,0.69]
[1766472019754,0.71,124.45,124.42,0.69]
[1766472022494,2.48173591,124.45,124.41,2.48173591]
[1766472022681,0.71,124.44,124.41,2.48173591]
[1766472022888,0.71,124.44,124.41,3.17173591]
[1766472023798,0.71,124.45,124.42,0.69]
[1766472024085,0.71,124.45,124.42,3.17173591]
[1766472024486,10.43767296,124.46,124.43,3.17173591]
[1766472024676,11.14767296,124.46,124.43,3.17173591]
[1766472024877,11.14767296,124.46,124.43,0.69]
[1766472025885,11.14767296,124.46,124.43,3.17173591]
[1766472026068,11.14767296,124.46,124.43,0.69]
[1766472029283,11.14767296,124.46,124.43,3.17173591]
[1766472029989,11.14767296,124.46,124.43,0.69]
[1766472030186,0.71,124.46,124.43,3.17173591]
[1766472030390,0.71,124.47,124.43,3.17173591]
[1766472030677,0.71,124.47,124.43,2.48173591]
[1766472030873,0.71,124.47,124.44,0.69]
[1766472032992,36.34306131,124.48,124.44,0.69]
[1766472033191,0.71,124.47,124.44,0.69]
[1766472036587,0.71,124.46,124.43,0.68]
[1766472037809,0.71,124.46,124.42,8.03718661]
[1766472037992,0.71,124.46,124.42,8.71718661]
[1766472038187,0.71,124.46,124.42,12.59559341]
[1766472038389,0.71,124.46,124.43,0.68]
[1766472050402,4.5884068,124.46,124.42,3.8784068]
[1766472050604,0.71,124.43,124.39,4.5584068]
[1766472051114,0.71,124.43,124.4,0.68]
[1766472052497,3.8784068,124.41,124.36,0.88]
[1766472052715,4.5884068,124.4,124.37,3.8784068]
[1766472052907,4.5884068,124.4,124.36,0.88]
[1766472052908,0.71,124.39,124.36,0.88]
[1766472053314,0.71,124.39,124.36,4.7584068]
[1766472054190,0.71,124.4,124.37,0.68]
[1766472054396,11.14767296,124.42,124.39,4.5584068]
[1766472054597,11.14767296,124.42,124.4,3.8784068]
[1766472054810,11.14767296,124.42,124.39,4.5584068]
[1766472055211,11.14767296,124.42,124.39,0.68]
[1766472055413,11.14767296,124.42,124.39,4.5584068]
[1766472056402,11.14767296,124.42,124.39,0.68]
[1766472058322,10.43767296,124.42,124.39,0.68]
[1766472060227,11.14767296,124.42,124.39,0.68]
[1766472062231,0.71,124.41,124.39,0.68]
[1766472062407,0.71,124.41,124.38,0.68]
[1766472063628,0.71,124.41,124.38,4.5584068]
[1766472064214,10.43767296,124.42,124.39,4.5584068]
[1766472065107,10.43767296,124.42,124.4,0.68]
[1766472067634,14.68,124.44,124.4,3.8784068]
[1766472067808,34.27038145,124.45,124.41,4.5684068]
[1766472068013,0.72,124.44,124.41,4.5684068]
[1766472068214,0.72,124.46,124.43,0.69]
[1766472068428,0.72,124.47,124.44,4.5684068]
[1766472069034,0.72,124.52,124.47,0.69]
[1766472069330,0.72,124.52,124.46,3.8784068]
[1766472069331,0.72,124.52,124.49,3.8784068]
[1766472069527,0.72,124.52,124.48,4.5684068]
[1766472069725,11.15767296,124.52,124.48,4.5684068]
[1766472070911,0.72,124.52,124.48,4.5684068]
[1766472071106,0.72,124.53,124.5,4.5684068]
[1766472071310,0.72,124.54,124.5,3.8784068]
[1766472071513,0.72,124.54,124.5,4.5684068]
[1766472071714,0.72,124.53,124.5,4.5684068]
[1766472072235,0.72,124.54,124.51,4.5684068]
[1766472072424,0.72,124.54,124.5,4.5684068]
[1766472073133,3.8784068,124.55,124.52,0.69]
[1766472073615,14.31607976,124.55,124.52,0.69]
[1766472073811,4.5984068,124.54,124.5,4.5684068]
[1766472074042,0.72,124.53,124.5,4.5684068]
[1766472074342,0.72,124.52,124.48,23.40329335]
[1766472074637,14.31607976,124.55,124.51,4.5684068]
[1766472074638,15.03607976,124.55,124.51,4.5684068]
[1766472074838,0.72,124.54,124.51,4.5684068]
[1766472075216,0.82,124.56,124.53,3.8784068]
[1766472075415,0.72,124.55,124.52,3.8784068]
[1766472075821,0.72,124.55,124.51,8.7214437]
[1766472075822,0.72,124.55,124.53,3.8784068]
[1766472076541,0.72,124.55,124.52,0.69]
[1766472076849,0.72,124.55,124.53,3.8784068]
[1766472080448,0.72,124.55,124.52,3.8784068]
[1766472080640,0.72,124.55,124.53,3.8784068]
[1766472081426,8.02890564,124.55,124.51,0.69]
[1766472081631,8.02890564,124.55,124.52,3.8784068]
[1766472081632,0.72,124.55,124.52,3.8784068]
[1766472082051,10.43767296,124.53,124.45,30.52454558]
[1766472082249,0.72,124.52,124.48,0.69]
[1766472082435,0.72,124.52,124.5,3.8784068]
[1766472082636,11.15767296,124.53,124.51,3.8784068]
[1766472083040,11.13767296,124.55,124.52,3.8784068]
[1766472083235,10.43767296,124.54,124.53,3.8784068]
[1766472083451,0.7,124.55,124.53,3.8784068]
[1766472083653,10.53767296,124.56,124.54,3.8784068]
[1766472083834,0.1,124.56,124.54,3.8784068]
[1766472084039,0.1,124.56,124.53,0.72]
[1766472084360,0.8,124.56,124.54,3.8784068]
[1766472086559,0.8,124.56,124.53,0.72]
[1766472086755,0.8,124.56,124.52,0.72]
[1766472087162,0.8,124.56,124.53,3.8784068]
[1766472088458,0.1,124.56,124.55,3.8784068]
[1766472091166,0.8,124.56,124.54,3.8784068]
[1766472091466,0.1,124.56,124.54,4.5984068]
[1766472091948,0.1,124.56,124.55,3.8784068]
[1766472093453,0.1,124.56,124.54,0.72]
[1766472093963,0.1,124.56,124.55,3.8784068]
[1766472095357,0.1,124.56,124.54,3.8784068]
[1766472095543,0.8,124.56,124.53,3.8784068]
[1766472095743,0.8,124.56,124.52,4.5984068]
[1766472095965,0.67,124.55,124.51,3.17925428]
[1766472096176,0.67,124.55,124.52,2.47925428]
[1766472097162,3.14925428,124.55,124.51,3.17925428]
[1766472097573,0.67,124.55,124.51,3.17925428]
[1766472097866,3.14925428,124.55,124.51,3.17925428]
[1766472098076,0.67,124.54,124.51,3.17925428]
[1766472099172,0.67,124.54,124.51,0.7]
[1766472099477,0.71,124.52,124.48,3.12925428]
[1766472099663,3.18925428,124.52,124.48,3.12925428]
[1766472099854,0.71,124.52,124.49,3.12925428]
[1766472101865,0.71,124.53,124.5,3.12925428]
[1766472102065,10.43767296,124.54,124.51,0.65]
[1766472102372,10.43767296,124.54,124.51,3.12925428]
[1766472102570,11.14767296,124.54,124.51,3.12925428]
[1766472103270,11.14767296,124.54,124.51,0.65]
[1766472103965,11.14767296,124.54,124.5,2.47925428]
[1766472103966,0.71,124.53,124.49,10.51197685]
[1766472104165,0.71,124.53,124.5,0.65]
[1766472105561,0.71,124.53,124.5,3.12925428]
[1766472105774,0.71,124.53,124.5,0.65]
[1766472106078,0.71,124.53,124.5,3.12925428]
[1766472107270,12.91692724,124.54,124.5,10.51127926]
[1766472107575,11.14767296,124.54,124.51,0.65]
[1766472107771,11.14767296,124.54,124.5,11.16127926]
[1766472108178,11.14767296,124.54,124.5,10.51127926]
[1766472108352,11.14767296,124.54,124.51,3.12925428]
[1766472113452,11.14767296,124.54,124.51,0.65]
[1766472115481,0.71,124.53,124.5,8.68202498]
[1766472115783,11.14767296,124.54,124.51,0.65]
[1766472115981,11.14767296,124.54,124.51,3.12925428]
[1766472116182,11.14767296,124.54,124.51,0.65]
[1766472116983,11.14767296,124.54,124.51,3.12925428]
[1766472118186,0.71,124.54,124.51,0.65]
[1766472118362,0.71,124.54,124.51,3.12925428]
[1766472118775,0.71,124.54,124.52,2.47925428]
[1766472120085,10.43767296,124.54,124.53,2.47925428]
[1766472120283,0.71,124.55,124.53,2.47925428]
[1766472120673,0.1,124.56,124.54,2.47925428]
[1766472120873,28.19755705,124.59,124.56,0.65]
[1766472120874,0.71,124.59,124.56,0.65]
[1766472121177,10.60537918,124.6,124.53,3.21427136]
[1766472121376,10.60537918,124.6,124.52,28.10774627]
[1766472121377,0.71,124.59,124.55,2.47925428]
[1766472121576,0.71,124.57,124.55,2.47925428]
[1766472121779,0.71,124.57,124.54,2.47925428]
[1766472122377,0.71,124.57,124.53,3.12925428]
[1766472122971,0.71,124.57,124.54,2.47925428]
[1766472123380,0.71,124.56,124.53,2.47925428]
[1766472127090,30.15618152,124.6,124.56,0.68]
[1766472127091,0.8,124.6,124.56,0.68]
[1766472127273,0.8,124.6,124.56,2.47925428]
[1766472127590,0.8,124.6,124.55,3.15925428]
[1766472127591,0.7,124.59,124.55,3.15925428]
[1766472128085,0.7,124.59,124.56,2.47925428]
[1766472135095,0.7,124.59,124.57,2.47925428]
[1766472137474,0.1,124.6,124.58,2.47925428]
[1766472137695,0.8,124.62,124.59,2.47925428]
[1766472137898,0.8,124.62,124.6,2.47925428]
[1766472138293,0.8,124.62,124.58,0.68]
[1766472138490,0.8,124.62,124.6,2.47925428]
[1766472139684,8.82452321,124.62,124.6,2.47925428]
[1766472139884,8.12452321,124.62,124.59,2.47925428]
[1766472140076,0.7,124.61,124.59,2.47925428]
[1766472141200,0.8,124.62,124.6,2.47925428]
[1766472141381,15.46,124.63,124.61,2.47925428]
[1766472143388,0.1,124.63,124.62,2.47925428]
[1766472144513,0.1,124.64,124.63,2.47925428]
[1766472145205,0.1,124.64,124.62,0.68]
[1766472145405,0.1,124.64,124.63,2.47925428]
[1766472146409,14.76,124.65,124.63,2.47925428]
[1766472146622,14.76,124.65,124.63,3.15925428]
[1766472148530,14.76,124.65,124.64,2.47925428]
[1766472148824,0.1,124.65,124.64,2.47925428]
[1766472149236,0.1,124.68,124.64,2.47925428]
[1766472149524,0.7,124.67,124.64,2.47925428]
[1766472151228,15.46,124.68,124.66,2.47925428]
[1766472151546,0.7,124.64,124.57,34.72855084]
[1766472151712,0.68,124.63,124.59,2.47925428]
[1766472152050,0.68,124.62,124.58,2.78925428]
[1766472152326,0.68,124.62,124.56,2.47925428]
[1766472152327,0.68,124.6,124.56,2.47925428]
[1766472152518,0.68,124.59,124.56,2.47925428]
[1766472154805,0.68,124.59,124.55,8.33887551]
[1766472155019,0.68,124.59,124.57,2.47925428]
[1766472155627,0.68,124.59,124.53,34.73489799]
[1766472155628,8.0263897,124.59,124.54,0.31]
[1766472155829,0.68,124.58,124.55,2.47925428]
[1766472157635,14.66,124.61,124.57,2.47925428]
[1766472157832,0.71,124.6,124.57,2.47925428]
[1766472158142,0.71,124.6,124.57,3.87050964]
[1766472159731,0.71,124.6,124.55,8.33850226]
[1766472159931,0.71,124.6,124.57,3.87050964]
[1766472160540,0.71,124.6,124.55,8.33850226]
[1766472160715,0.71,124.6,124.57,3.87050964]
[1766472160920,11.14767296,124.61,124.58,3.87050964]
[1766472161225,15.37,124.63,124.6,3.87050964]
[1766472161734,0.71,124.64,124.62,3.87050964]
[1766472163127,0.71,124.64,124.6,4.18050964]
[1766472163329,0.71,124.64,124.62,3.87050964]
[1766472165427,0.71,124.64,124.6,8.33520544]
[1766472165717,0.71,124.64,124.62,3.87050964]
[1766472168118,0.71,124.65,124.63,3.87050964]
[1766472168320,0.71,124.65,124.61,8.33501686]
[1766472168532,0.71,124.65,124.63,3.87050964]
[1766472169231,0.71,124.65,124.61,0.31]
[1766472169431,0.71,124.65,124.62,3.87050964]
[1766472171031,0.71,124.65,124.6,12.2061508]
[1766472171350,0.71,124.65,124.62,3.87050964]
[1766472174148,0.71,124.65,124.63,3.87050964]
[1766472174650,14.66,124.66,124.64,3.87050964]
[1766472174857,0.71,124.66,124.63,0.31]
[1766472175056,0.71,124.66,124.64,3.87050964]
[1766472175932,0.71,124.66,124.62,0.31]
[1766472176128,0.71,124.65,124.63,3.87050964]
[1766472177354,0.71,124.65,124.59,20.06458581]
[1766472177555,0.71,124.64,124.61,3.87050964]
[1766472177756,0.71,124.64,124.6,0.31]
[1766472177947,0.71,124.64,124.61,3.87050964]
[1766472180332,0.71,124.64,124.62,3.87050964]
[1766472181253,8.0220302,124.66,124.62,3.87050964]
[1766472181459,10.43767296,124.66,124.65,3.87050964]
[1766472181856,11.14767296,124.66,124.61,0.31]
[1766472182055,10.43767296,124.66,124.62,0.31]
[1766472182260,0.71,124.65,124.63,3.87050964]
[1766472183058,10.43767296,124.66,124.64,3.87050964]
[1766472183255,11.14767296,124.66,124.63,0.31]
[1766472183456,11.14767296,124.66,124.64,3.87050964]
[1766472185045,10.43767296,124.66,124.64,3.87050964]
[1766472185247,10.43767296,124.66,124.63,0.31]
[1766472185560,0.71,124.65,124.61,0.31]
[1766472185754,0.71,124.65,124.63,3.87050964]
[1766472188062,19.12950656,124.66,124.63,4.18050964]
[1766472188444,19.12950656,124.66,124.63,3.87050964]
[1766472189367,19.12950656,124.66,124.62,0.31]
[1766472189666,19.12950656,124.66,124.63,3.87050964]
[1766472191146,19.12950656,124.66,124.64,3.87050964]
[1766472192144,11.10767296,124.66,124.64,3.87050964]
[1766472192873,11.10767296,124.66,124.62,0.31]
[1766472193071,11.10767296,124.66,124.63,3.87050964]
[1766472193663,23.35136112,124.67,124.64,3.87050964]
[1766472193969,23.35136112,124.67,124.65,3.87050964]
[1766472194143,14.66,124.67,124.65,3.87050964]
[1766472194349,14.66,124.67,124.66,3.87050964]
[1766472194669,0.77,124.68,124.66,3.87050964]
[1766472195173,0.1,124.68,124.67,3.87050964]
[1766472195367,15.43,124.69,124.67,3.87050964]
[1766472195564,0.67,124.68,124.65,3.87050964]
[1766472196854,0.67,124.68,124.65,4.18050964]
[1766472198050,0.67,124.68,124.65,3.87050964]
[1766472200475,0.67,124.68,124.63,8.0235238]
[1766472200656,0.67,124.67,124.65,3.87050964]
[1766472201160,0.67,124.67,124.64,0.31]
[1766472201358,0.67,124.67,124.65,3.87050964]
[1766472201560,0.67,124.68,124.65,3.87050964]
[1766472202173,0.67,124.68,124.64,8.33310033]
[1766472202480,0.67,124.68,124.65,3.87050964]
[1766472203279,0.67,124.68,124.64,8.33310033]
[1766472203466,0.67,124.68,124.65,3.87050964]
[1766472207986,0.67,124.68,124.66,3.87050964]
[1766472208469,22.77990259,124.69,124.66,3.87050964]
[1766472208877,0.67,124.68,124.66,3.87050964]
[1766472211274,14.76,124.69,124.66,3.87050964]
[1766472211478,15.43,124.69,124.66,3.87050964]
[1766472211783,23.44990657,124.69,124.66,3.87050964]
[1766472212984,15.43,124.69,124.67,3.87050964]
[1766472213187,15.43,124.69,124.66,3.87050964]
[1766472213578,15.43,124.69,124.66,4.18050964]
[1766472213892,15.43,124.69,124.67,3.87050964]
[1766472214072,15.43,124.69,124.66,0.31]
[1766472214073,8.01873071,124.71,124.68,3.87050964]
[1766472214265,0.67,124.7,124.67,3.87050964]
[1766472214673,0.67,124.69,124.66,4.08050964]
[1766472218989,0.67,124.69,124.67,3.87050964]
[1766472219994,0.67,124.69,124.67,2.47305414]
[1766472220790,0.67,124.69,124.65,8.23227771]
[1766472220994,0.67,124.69,124.66,2.47305414]
[1766472222276,0.67,124.69,124.65,8.23227771]
[1766472222277,0.67,124.69,124.67,2.47305414]
[1766472222687,8.0201708,124.69,124.64,8.02309243]
[1766472222900,0.71,124.68,124.65,2.47305414]
[1766472223076,0.71,124.68,124.65,2.68305414]
[1766472223399,0.71,124.68,124.66,2.47305414]
[1766472224292,0.71,124.68,124.65,0.21]
[1766472224475,0.71,124.68,124.66,2.47305414]
[1766472226079,0.71,124.69,124.66,2.47305414]
[1766472226799,0.71,124.69,124.65,2.68305414]
[1766472227180,0.71,124.69,124.66,2.47305414]
[1766472228285,8.72998647,124.69,124.65,0.21]
[1766472228605,8.72998647,124.69,124.66,2.47305414]
[1766472229277,0.71,124.68,124.65,2.68305414]
[1766472230103,0.71,124.67,124.64,2.47305414]
[1766472230304,0.71,124.67,124.62,8.23418251]
[1766472230305,0.71,124.66,124.62,0.21]
[1766472230478,0.71,124.66,124.64,2.47305414]
[1766472234385,0.71,124.66,124.63,0.21]
[1766472234583,0.71,124.66,124.64,2.47305414]
[1766472235009,0.71,124.66,124.63,0.21]
[1766472235210,0.71,124.66,124.64,2.47305414]
[1766472238105,14.66,124.67,124.65,2.68305414]
[1766472238294,11.14767296,124.68,124.65,2.68305414]
[1766472239107,11.14767296,124.68,124.66,2.47305414]
[1766472239886,23.39007157,124.69,124.66,2.68305414]
[1766472240303,15.37,124.69,124.67,2.47305414]
[1766472241999,15.37,124.69,124.66,2.68305414]
[1766472242389,15.37,124.69,124.67,2.47305414]
[1766472243795,0.71,124.69,124.67,2.47305414]
[1766472244508,0.71,124.7,124.67,2.68305414]
[1766472245286,0.71,124.7,124.67,2.47305414]
[1766472245922,0.71,124.7,124.67,2.68305414]
[1766472246914,0.71,124.7,124.67,2.47305414]
[1766472247116,0.71,124.69,124.67,2.47305414]
[1766472247416,0.71,124.69,124.66,2.68305414]
[1766472248312,0.71,124.69,124.67,2.47305414]
[1766472248928,0.71,124.69,124.66,0.21]
[1766472249099,0.71,124.69,124.67,2.47305414]
[1766472250420,0.71,124.69,124.66,0.21]
[1766472250623,8.01932403,124.7,124.67,2.47305414]
[1766472250928,0.71,124.69,124.67,2.47305414]
[1766472251722,0.71,124.69,124.66,2.68305414]
[1766472252310,0.71,124.69,124.64,0.21]
[1766472252500,0.71,124.69,124.66,2.47305414]
[1766472253235,0.71,124.69,124.65,0.21]
[1766472253531,0.71,124.69,124.66,2.47305414]
[1766472254103,0.71,124.67,124.63,2.68305414]
[1766472254414,2.47305414,124.67,124.62,2.47305414]
[1766472254622,0.71,124.66,124.62,2.47305414]
[1766472254921,0.71,124.65,124.62,2.68305414]
[1766472255126,0.71,124.65,124.63,2.47305414]
[1766472255721,0.71,124.66,124.63,2.47305414]
[1766472256136,0.71,124.66,124.64,2.47305414]
[1766472256322,0.71,124.66,124.63,0.21]
[1766472256643,0.71,124.66,124.63,2.68305414]
[1766472259430,8.02192781,124.66,124.61,0.21]
[1766472259733,0.71,124.65,124.61,0.21]
[1766472260033,0.71,124.65,124.62,2.68305414]
[1766472260837,0.71,124.65,124.62,0.21]
[1766472261139,0.71,124.65,124.62,2.68305414]
[1766472262236,0.71,124.65,124.63,2.47305414]
[1766472263326,0.71,124.66,124.62,0.21]
[1766472263530,0.71,124.66,124.63,2.47305414]
[1766472264335,0.71,124.66,124.63,0.21]
[1766472264537,0.71,124.66,124.63,2.68305414]
[1766472265336,0.71,124.66,124.63,2.47305414]
[1766472270739,8.0211759,124.67,124.63,2.47305414]
[1766472270944,8.7311759,124.67,124.63,2.68305414]
[1766472271322,0.71,124.66,124.63,2.68305414]
[1766472275341,0.71,124.66,124.64,2.47305414]
[1766472279131,0.71,124.66,124.63,2.68305414]
[1766472279837,0.71,124.66,124.64,2.47305414]
[1766472280037,0.71,124.66,124.64,3.86595897]
[1766472281239,0.71,124.66,124.63,4.07595897]
[1766472284161,0.71,124.66,124.63,0.21]
[1766472284463,0.71,124.66,124.63,4.07595897]
[1766472285347,0.69,124.65,124.62,0.21]
[1766472285554,0.69,124.65,124.63,3.86595897]
[1766472285954,8.71184806,124.66,124.63,4.07595897]
[1766472286473,0.69,124.66,124.63,4.07595897]
[1766472292369,0.69,124.66,124.63,0.21]
[1766472292575,8.02214683,124.66,124.62,4.07595897]
[1766472292864,0.69,124.65,124.62,4.07595897]
[1766472293070,0.69,124.65,124.62,0.21]
[1766472293245,0.69,124.65,124.62,4.07595897]
[1766472293642,8.7124907,124.65,124.61,4.07595897]
[1766472293871,0.69,124.64,124.59,0.21]
[1766472294070,0.69,124.64,124.6,3.86595897]
[1766472294252,0.69,124.64,124.6,4.07595897]
[1766472295072,0.69,124.64,124.61,3.86595897]
[1766472295778,0.69,124.63,124.61,3.86595897]
[1766472296371,0.69,124.63,124.6,4.07595897]
[1766472297874,0.69,124.62,124.6,3.86595897]
[1766472298263,0.69,124.62,124.59,0.21]
[1766472298466,0.69,124.62,124.6,3.86595897]
[1766472298852,8.02310654,124.64,124.6,3.86595897]
[1766472299067,8.02310654,124.64,124.6,4.07595897]
[1766472299377,0.69,124.63,124.6,4.07595897]
[1766472300453,0.69,124.63,124.61,3.86595897]